Workbook

Sheet Worksheet
A1: Variables
F2: National 4: Non-calculator practice | H2: Answers (this column does not print by default)
D3: =IF(K3=1,"Easier",IF(K3=2,"Medium","Harder")) -> Easier | F3: 1 | G3: Multiply: 5.5 × 900 | H3: 4950 | K3: 1
D4: =IF(K4=1,"Easier",IF(K4=2,"Medium","Harder")) -> Easier | F4: 2 | G4: Divide: (-90) ÷ (-9) | H4: 810 | K4: 1
D5: Easier | F5: 3 | G5: Divide: 8000 ÷ 40 | H5: 200 | K5: 1
D6: Easier | F6: 4 | G6: 25% of 2000 | H6: 500 | K6: 1
D7: Medium | F7: 5 | G7: 490 – 10 × 13 | H7: 360 | K7: 2
D8: Medium | F8: 6 | G8: 182 + 12 × 15 | H8: 362 | K8: 2
D9: Medium | F9: 7 | G9: 4 × 2.5 × 4.9 | H9: 49 | K9: 2
D10: Medium | F10: 8 | G10: 8 + 2 × (-10) | H10: -12 | K10: 2
D11: Medium | F11: 9 | G11: 4 × (-4) × 5 | H11: -80 | K11: 2
D12: Medium | F12: 10 | G12: 8 × (2 1/3) | H12: 18 2/3 | K12: 2
D13: Medium | F13: 11 | G13: (-9) × 0 + 1 | H13: 1 | K13: 2
D14: Medium | F14: 12 | G14: 15 × 17 + 36 | H14: 291 | K14: 2
D15: Medium | F15: 13 | G15: (-8) × 9 –7 | H15: -79 | K15: 2
D16: Medium | F16: 14 | G16: (-2) × 0 –3 | H16: -3 | K16: 2
D17: Harder | F17: 15 | G17: 30 – 8 × (-7) | H17: 86 | K17: 3
D18: Harder | F18: 16 | G18: 5 × (-2) × (-5) – (-14) | H18: 64 | K18: 3
D19: Harder | F19: 17 | G19: 11 – 10 × 5² | H19: -239 | K19: 3
D20: Harder | F20: 18 | G20: 0.3 × 470 | H20: 141 | K20: 3
D21: Harder | F21: 19 | G21: 1/2 × 6 + 8 | H21: 11 | K21: 3
D22: Harder | F22: 20 | G22: 3.5 × (-6) + 4 | H22: -17 | K22: 3

Sheet SYSTEM FORMULAE
A1: =Worksheet!D3 -> Easier | B1: =IF($A1="Easier",RANDBETWEEN(1,Easy),IF($A1="Medium",RANDBETWEEN(Easy+1,Easy+Medium),IF($A1="Harder",RANDBETWEEN(Easy+Medium+1,Easy+Medium+Hard),RANDBETWEEN(1,Easy+Medium+Hard)))) -> 9 | C1: =IF(COUNTIF(B$1:B1,B1)<>1,IF($A1="Easier",RANDBETWEEN(1,Easy),IF($A1="Medium",RANDBETWEEN(Easy+1,Easy+Medium),IF($A1="Harder",RANDBETWEEN(Easy+Medium+1,Easy+Medium+Hard),RANDBETWEEN(1,Easy+Medium+Hard)))),B1) -> 9 | D1: =IF(COUNTIF(C$1:C1,C1)<>1,IF($A1="Easier",RANDBETWEEN(1,Easy),IF($A1="Medium",RANDBETWEEN(Easy+1,Easy+Medium),IF($A1="Harder",RANDBETWEEN(Easy+Medium+1,Easy+Medium+Hard),RANDBETWEEN(1,Easy+Medium+Hard)))),C1) -> 9 | E1: =IF(COUNTIF(D$1:D1,D1)<>1,IF($A1="Easier",RANDBETWEEN(1,Easy),IF($A1="Medium",RANDBETWEEN(Easy+1,Easy+Medium),IF($A1="Harder",RANDBETWEEN(Easy+Medium+1,Easy+Medium+Hard),RANDBETWEEN(1,Easy+Medium+Hard)))),D1) -> 9 | F1: =IF(COUNTIF(E$1:E1,E1)<>1,IF($A1="Easier",RANDBETWEEN(1,Easy),IF($A1="Medium",RANDBETWEEN(Easy+1,Easy+Medium),IF($A1="Harder",RANDBETWEEN(Easy+Medium+1,Easy+Medium+Hard),RANDBETWEEN(1,Easy+Medium+Hard)))),E1) -> 9 | G1: 1 | H1: =VLOOKUP($F1,'System DO NOT OPEN'!$A$8:$P$200,11) -> 75% of 2800 | I1: =VLOOKUP($F1,'System DO NOT OPEN'!$A$8:$P$200,16) -> 2100 | U1: shading shapes
A2: =Worksheet!D4 -> Easier | B2: 18 | C2: =IF(COUNTIF(B$1:B2,B2)<>1,IF($A2="Easier",RANDBETWEEN(1,Easy),IF($A2="Medium",RANDBETWEEN(Easy+1,Easy+Medium),IF($A2="Harder",RANDBETWEEN(Easy+Medium+1,Easy+Medium+Hard),RANDBETWEEN(1,Easy+Medium+Hard)))),B2) -> 18 | D2: =IF(COUNTIF(C$1:C2,C2)<>1,IF($A2="Easier",RANDBETWEEN(1,Easy),IF($A2="Medium",RANDBETWEEN(Easy+1,Easy+Medium),IF($A2="Harder",RANDBETWEEN(Easy+Medium+1,Easy+Medium+Hard),RANDBETWEEN(1,Easy+Medium+Hard)))),C2) -> 18 | E2: =IF(COUNTIF(D$1:D2,D2)<>1,IF($A2="Easier",RANDBETWEEN(1,Easy),IF($A2="Medium",RANDBETWEEN(Easy+1,Easy+Medium),IF($A2="Harder",RANDBETWEEN(Easy+Medium+1,Easy+Medium+Hard),RANDBETWEEN(1,Easy+Medium+Hard)))),D2) -> 18 | F2: =IF(COUNTIF(E$1:E2,E2)<>1,IF($A2="Easier",RANDBETWEEN(1,Easy),IF($A2="Medium",RANDBETWEEN(Easy+1,Easy+Medium),IF($A2="Harder",RANDBETWEEN(Easy+Medium+1,Easy+Medium+Hard),RANDBETWEEN(1,Easy+Medium+Hard)))),E2) -> 18 | G2: 2 | H2: =VLOOKUP($F2,'System DO NOT OPEN'!$A$8:$P$200,11) -> Divide: 320000 ÷ 400 | I2: =VLOOKUP($F2,'System DO NOT OPEN'!$A$8:$P$200,16) -> 800 | U2: how many 4p grapes for 28p
A3: =Worksheet!D5 -> Easier | B3: 19 | C3: =IF(COUNTIF(B$1:B3,B3)<>1,IF($A3="Easier",RANDBETWEEN(1,Easy),IF($A3="Medium",RANDBETWEEN(Easy+1,Easy+Medium),IF($A3="Harder",RANDBETWEEN(Easy+Medium+1,Easy+Medium+Hard),RANDBETWEEN(1,Easy+Medium+Hard)))),B3) -> 19 | D3: =IF(COUNTIF(C$1:C3,C3)<>1,IF($A3="Easier",RANDBETWEEN(1,Easy),IF($A3="Medium",RANDBETWEEN(Easy+1,Easy+Medium),IF($A3="Harder",RANDBETWEEN(Easy+Medium+1,Easy+Medium+Hard),RANDBETWEEN(1,Easy+Medium+Hard)))),C3) -> 19 | E3: =IF(COUNTIF(D$1:D3,D3)<>1,IF($A3="Easier",RANDBETWEEN(1,Easy),IF($A3="Medium",RANDBETWEEN(Easy+1,Easy+Medium),IF($A3="Harder",RANDBETWEEN(Easy+Medium+1,Easy+Medium+Hard),RANDBETWEEN(1,Easy+Medium+Hard)))),D3) -> 19 | F3: =IF(COUNTIF(E$1:E3,E3)<>1,IF($A3="Easier",RANDBETWEEN(1,Easy),IF($A3="Medium",RANDBETWEEN(Easy+1,Easy+Medium),IF($A3="Harder",RANDBETWEEN(Easy+Medium+1,Easy+Medium+Hard),RANDBETWEEN(1,Easy+Medium+Hard)))),E3) -> 19 | G3: 3 | H3: =VLOOKUP($F3,'System DO NOT OPEN'!$A$8:$P$200,11) -> Divide: 140 ÷ 4 | I3: =VLOOKUP($F3,'System DO NOT OPEN'!$A$8:$P$200,16) -> 35 | U3: what do 9 pencils cost at 10p each
A4: =Worksheet!D6 -> Easier | B4: 22 | C4: =IF(COUNTIF(B$1:B4,B4)<>1,IF($A4="Easier",RANDBETWEEN(1,Easy),IF($A4="Medium",RANDBETWEEN(Easy+1,Easy+Medium),IF($A4="Harder",RANDBETWEEN(Easy+Medium+1,Easy+Medium+Hard),RANDBETWEEN(1,Easy+Medium+Hard)))),B4) -> 22 | D4: =IF(COUNTIF(C$1:C4,C4)<>1,IF($A4="Easier",RANDBETWEEN(1,Easy),IF($A4="Medium",RANDBETWEEN(Easy+1,Easy+Medium),IF($A4="Harder",RANDBETWEEN(Easy+Medium+1,Easy+Medium+Hard),RANDBETWEEN(1,Easy+Medium+Hard)))),C4) -> 22 | E4: =IF(COUNTIF(D$1:D4,D4)<>1,IF($A4="Easier",RANDBETWEEN(1,Easy),IF($A4="Medium",RANDBETWEEN(Easy+1,Easy+Medium),IF($A4="Harder",RANDBETWEEN(Easy+Medium+1,Easy+Medium+Hard),RANDBETWEEN(1,Easy+Medium+Hard)))),D4) -> 22 | F4: =IF(COUNTIF(E$1:E4,E4)<>1,IF($A4="Easier",RANDBETWEEN(1,Easy),IF($A4="Medium",RANDBETWEEN(Easy+1,Easy+Medium),IF($A4="Harder",RANDBETWEEN(Easy+Medium+1,Easy+Medium+Hard),RANDBETWEEN(1,Easy+Medium+Hard)))),E4) -> 22 | G4: 4 | H4: =VLOOKUP($F4,'System DO NOT OPEN'!$A$8:$P$200,11) -> 5% of 14200 | I4: =VLOOKUP($F4,'System DO NOT OPEN'!$A$8:$P$200,16) -> 710 | U4: pounds/pence
A5: =Worksheet!D7 -> Medium | B5: 45 | C5: =IF(COUNTIF(B$1:B5,B5)<>1,IF($A5="Easier",RANDBETWEEN(1,Easy),IF($A5="Medium",RANDBETWEEN(Easy+1,Easy+Medium),IF($A5="Harder",RANDBETWEEN(Easy+Medium+1,Easy+Medium+Hard),RANDBETWEEN(1,Easy+Medium+Hard)))),B5) -> 45 | D5: =IF(COUNTIF(C$1:C5,C5)<>1,IF($A5="Easier",RANDBETWEEN(1,Easy),IF($A5="Medium",RANDBETWEEN(Easy+1,Easy+Medium),IF($A5="Harder",RANDBETWEEN(Easy+Medium+1,Easy+Medium+Hard),RANDBETWEEN(1,Easy+Medium+Hard)))),C5) -> 45 | E5: =IF(COUNTIF(D$1:D5,D5)<>1,IF($A5="Easier",RANDBETWEEN(1,Easy),IF($A5="Medium",RANDBETWEEN(Easy+1,Easy+Medium),IF($A5="Harder",RANDBETWEEN(Easy+Medium+1,Easy+Medium+Hard),RANDBETWEEN(1,Easy+Medium+Hard)))),D5) -> 45 | F5: =IF(COUNTIF(E$1:E5,E5)<>1,IF($A5="Easier",RANDBETWEEN(1,Easy),IF($A5="Medium",RANDBETWEEN(Easy+1,Easy+Medium),IF($A5="Harder",RANDBETWEEN(Easy+Medium+1,Easy+Medium+Hard),RANDBETWEEN(1,Easy+Medium+Hard)))),E5) -> 45 | G5: 5 | H5: =VLOOKUP($F5,'System DO NOT OPEN'!$A$8:$P$200,11) -> 4 × 2.5 × 6.8 | I5: =VLOOKUP($F5,'System DO NOT OPEN'!$A$8:$P$200,16) -> 68
A6: =Worksheet!D8 -> Medium | B6: 32 | C6: =IF(COUNTIF(B$1:B6,B6)<>1,IF($A6="Easier",RANDBETWEEN(1,Easy),IF($A6="Medium",RANDBETWEEN(Easy+1,Easy+Medium),IF($A6="Harder",RANDBETWEEN(Easy+Medium+1,Easy+Medium+Hard),RANDBETWEEN(1,Easy+Medium+Hard)))),B6) -> 32 | D6: =IF(COUNTIF(C$1:C6,C6)<>1,IF($A6="Easier",RANDBETWEEN(1,Easy),IF($A6="Medium",RANDBETWEEN(Easy+1,Easy+Medium),IF($A6="Harder",RANDBETWEEN(Easy+Medium+1,Easy+Medium+Hard),RANDBETWEEN(1,Easy+Medium+Hard)))),C6) -> 32 | E6: =IF(COUNTIF(D$1:D6,D6)<>1,IF($A6="Easier",RANDBETWEEN(1,Easy),IF($A6="Medium",RANDBETWEEN(Easy+1,Easy+Medium),IF($A6="Harder",RANDBETWEEN(Easy+Medium+1,Easy+Medium+Hard),RANDBETWEEN(1,Easy+Medium+Hard)))),D6) -> 32 | F6: =IF(COUNTIF(E$1:E6,E6)<>1,IF($A6="Easier",RANDBETWEEN(1,Easy),IF($A6="Medium",RANDBETWEEN(Easy+1,Easy+Medium),IF($A6="Harder",RANDBETWEEN(Easy+Medium+1,Easy+Medium+Hard),RANDBETWEEN(1,Easy+Medium+Hard)))),E6) -> 32 | G6: 6 | H6: =VLOOKUP($F6,'System DO NOT OPEN'!$A$8:$P$200,11) -> (-4) × (-9) + 1 | I6: =VLOOKUP($F6,'System DO NOT OPEN'!$A$8:$P$200,16) -> 37
A7: =Worksheet!D9 -> Medium | B7: 47 | C7: =IF(COUNTIF(B$1:B7,B7)<>1,IF($A7="Easier",RANDBETWEEN(1,Easy),IF($A7="Medium",RANDBETWEEN(Easy+1,Easy+Medium),IF($A7="Harder",RANDBETWEEN(Easy+Medium+1,Easy+Medium+Hard),RANDBETWEEN(1,Easy+Medium+Hard)))),B7) -> 47 | D7: =IF(COUNTIF(C$1:C7,C7)<>1,IF($A7="Easier",RANDBETWEEN(1,Easy),IF($A7="Medium",RANDBETWEEN(Easy+1,Easy+Medium),IF($A7="Harder",RANDBETWEEN(Easy+Medium+1,Easy+Medium+Hard),RANDBETWEEN(1,Easy+Medium+Hard)))),C7) -> 47 | E7: =IF(COUNTIF(D$1:D7,D7)<>1,IF($A7="Easier",RANDBETWEEN(1,Easy),IF($A7="Medium",RANDBETWEEN(Easy+1,Easy+Medium),IF($A7="Harder",RANDBETWEEN(Easy+Medium+1,Easy+Medium+Hard),RANDBETWEEN(1,Easy+Medium+Hard)))),D7) -> 47 | F7: =IF(COUNTIF(E$1:E7,E7)<>1,IF($A7="Easier",RANDBETWEEN(1,Easy),IF($A7="Medium",RANDBETWEEN(Easy+1,Easy+Medium),IF($A7="Harder",RANDBETWEEN(Easy+Medium+1,Easy+Medium+Hard),RANDBETWEEN(1,Easy+Medium+Hard)))),E7) -> 47 | G7: 7 | H7: =VLOOKUP($F7,'System DO NOT OPEN'!$A$8:$P$200,11) -> 280 – (45 ÷ 9) | I7: =VLOOKUP($F7,'System DO NOT OPEN'!$A$8:$P$200,16) -> 275
A8: =Worksheet!D10 -> Medium | B8: 42 | C8: =IF(COUNTIF(B$1:B8,B8)<>1,IF($A8="Easier",RANDBETWEEN(1,Easy),IF($A8="Medium",RANDBETWEEN(Easy+1,Easy+Medium),IF($A8="Harder",RANDBETWEEN(Easy+Medium+1,Easy+Medium+Hard),RANDBETWEEN(1,Easy+Medium+Hard)))),B8) -> 42 | D8: =IF(COUNTIF(C$1:C8,C8)<>1,IF($A8="Easier",RANDBETWEEN(1,Easy),IF($A8="Medium",RANDBETWEEN(Easy+1,Easy+Medium),IF($A8="Harder",RANDBETWEEN(Easy+Medium+1,Easy+Medium+Hard),RANDBETWEEN(1,Easy+Medium+Hard)))),C8) -> 42 | E8: =IF(COUNTIF(D$1:D8,D8)<>1,IF($A8="Easier",RANDBETWEEN(1,Easy),IF($A8="Medium",RANDBETWEEN(Easy+1,Easy+Medium),IF($A8="Harder",RANDBETWEEN(Easy+Medium+1,Easy+Medium+Hard),RANDBETWEEN(1,Easy+Medium+Hard)))),D8) -> 42 | F8: =IF(COUNTIF(E$1:E8,E8)<>1,IF($A8="Easier",RANDBETWEEN(1,Easy),IF($A8="Medium",RANDBETWEEN(Easy+1,Easy+Medium),IF($A8="Harder",RANDBETWEEN(Easy+Medium+1,Easy+Medium+Hard),RANDBETWEEN(1,Easy+Medium+Hard)))),E8) -> 42 | G8: 8 | H8: =VLOOKUP($F8,'System DO NOT OPEN'!$A$8:$P$200,11) -> 85 + 14 × 15 | I8: =VLOOKUP($F8,'System DO NOT OPEN'!$A$8:$P$200,16) -> 295
A9: =Worksheet!D11 -> Medium | B9: 36 | C9: =IF(COUNTIF(B$1:B9,B9)<>1,IF($A9="Easier",RANDBETWEEN(1,Easy),IF($A9="Medium",RANDBETWEEN(Easy+1,Easy+Medium),IF($A9="Harder",RANDBETWEEN(Easy+Medium+1,Easy+Medium+Hard),RANDBETWEEN(1,Easy+Medium+Hard)))),B9) -> 36 | D9: =IF(COUNTIF(C$1:C9,C9)<>1,IF($A9="Easier",RANDBETWEEN(1,Easy),IF($A9="Medium",RANDBETWEEN(Easy+1,Easy+Medium),IF($A9="Harder",RANDBETWEEN(Easy+Medium+1,Easy+Medium+Hard),RANDBETWEEN(1,Easy+Medium+Hard)))),C9) -> 36 | E9: =IF(COUNTIF(D$1:D9,D9)<>1,IF($A9="Easier",RANDBETWEEN(1,Easy),IF($A9="Medium",RANDBETWEEN(Easy+1,Easy+Medium),IF($A9="Harder",RANDBETWEEN(Easy+Medium+1,Easy+Medium+Hard),RANDBETWEEN(1,Easy+Medium+Hard)))),D9) -> 36 | F9: =IF(COUNTIF(E$1:E9,E9)<>1,IF($A9="Easier",RANDBETWEEN(1,Easy),IF($A9="Medium",RANDBETWEEN(Easy+1,Easy+Medium),IF($A9="Harder",RANDBETWEEN(Easy+Medium+1,Easy+Medium+Hard),RANDBETWEEN(1,Easy+Medium+Hard)))),E9) -> 36 | G9: 9 | H9: =VLOOKUP($F9,'System DO NOT OPEN'!$A$8:$P$200,11) -> £1.65 × 300 | I9: =VLOOKUP($F9,'System DO NOT OPEN'!$A$8:$P$200,16) -> £495.00
A10: =Worksheet!D12 -> Medium | B10: 44 | C10: =IF(COUNTIF(B$1:B10,B10)<>1,IF($A10="Easier",RANDBETWEEN(1,Easy),IF($A10="Medium",RANDBETWEEN(Easy+1,Easy+Medium),IF($A10="Harder",RANDBETWEEN(Easy+Medium+1,Easy+Medium+Hard),RANDBETWEEN(1,Easy+Medium+Hard)))),B10) -> 44 | D10: =IF(COUNTIF(C$1:C10,C10)<>1,IF($A10="Easier",RANDBETWEEN(1,Easy),IF($A10="Medium",RANDBETWEEN(Easy+1,Easy+Medium),IF($A10="Harder",RANDBETWEEN(Easy+Medium+1,Easy+Medium+Hard),RANDBETWEEN(1,Easy+Medium+Hard)))),C10) -> 44 | E10: =IF(COUNTIF(D$1:D10,D10)<>1,IF($A10="Easier",RANDBETWEEN(1,Easy),IF($A10="Medium",RANDBETWEEN(Easy+1,Easy+Medium),IF($A10="Harder",RANDBETWEEN(Easy+Medium+1,Easy+Medium+Hard),RANDBETWEEN(1,Easy+Medium+Hard)))),D10) -> 44 | F10: =IF(COUNTIF(E$1:E10,E10)<>1,IF($A10="Easier",RANDBETWEEN(1,Easy),IF($A10="Medium",RANDBETWEEN(Easy+1,Easy+Medium),IF($A10="Harder",RANDBETWEEN(Easy+Medium+1,Easy+Medium+Hard),RANDBETWEEN(1,Easy+Medium+Hard)))),E10) -> 44 | G10: 10 | H10: =VLOOKUP($F10,'System DO NOT OPEN'!$A$8:$P$200,11) -> 180 ÷ 4 ÷ 5 | I10: =VLOOKUP($F10,'System DO NOT OPEN'!$A$8:$P$200,16) -> 9
A11: =Worksheet!D13 -> Medium | B11: 31 | C11: =IF(COUNTIF(B$1:B11,B11)<>1,IF($A11="Easier",RANDBETWEEN(1,Easy),IF($A11="Medium",RANDBETWEEN(Easy+1,Easy+Medium),IF($A11="Harder",RANDBETWEEN(Easy+Medium+1,Easy+Medium+Hard),RANDBETWEEN(1,Easy+Medium+Hard)))),B11) -> 31 | D11: =IF(COUNTIF(C$1:C11,C11)<>1,IF($A11="Easier",RANDBETWEEN(1,Easy),IF($A11="Medium",RANDBETWEEN(Easy+1,Easy+Medium),IF($A11="Harder",RANDBETWEEN(Easy+Medium+1,Easy+Medium+Hard),RANDBETWEEN(1,Easy+Medium+Hard)))),C11) -> 31 | E11: =IF(COUNTIF(D$1:D11,D11)<>1,IF($A11="Easier",RANDBETWEEN(1,Easy),IF($A11="Medium",RANDBETWEEN(Easy+1,Easy+Medium),IF($A11="Harder",RANDBETWEEN(Easy+Medium+1,Easy+Medium+Hard),RANDBETWEEN(1,Easy+Medium+Hard)))),D11) -> 31 | F11: =IF(COUNTIF(E$1:E11,E11)<>1,IF($A11="Easier",RANDBETWEEN(1,Easy),IF($A11="Medium",RANDBETWEEN(Easy+1,Easy+Medium),IF($A11="Harder",RANDBETWEEN(Easy+Medium+1,Easy+Medium+Hard),RANDBETWEEN(1,Easy+Medium+Hard)))),E11) -> 31 | G11: 11 | H11: =VLOOKUP($F11,'System DO NOT OPEN'!$A$8:$P$200,11) -> (-1) × 2 + 2 | I11: =VLOOKUP($F11,'System DO NOT OPEN'!$A$8:$P$200,16) -> 0
A12: =Worksheet!D14 -> Medium | B12: 34 | C12: =IF(COUNTIF(B$1:B12,B12)<>1,IF($A12="Easier",RANDBETWEEN(1,Easy),IF($A12="Medium",RANDBETWEEN(Easy+1,Easy+Medium),IF($A12="Harder",RANDBETWEEN(Easy+Medium+1,Easy+Medium+Hard),RANDBETWEEN(1,Easy+Medium+Hard)))),B12) -> 34 | D12: =IF(COUNTIF(C$1:C12,C12)<>1,IF($A12="Easier",RANDBETWEEN(1,Easy),IF($A12="Medium",RANDBETWEEN(Easy+1,Easy+Medium),IF($A12="Harder",RANDBETWEEN(Easy+Medium+1,Easy+Medium+Hard),RANDBETWEEN(1,Easy+Medium+Hard)))),C12) -> 34 | E12: =IF(COUNTIF(D$1:D12,D12)<>1,IF($A12="Easier",RANDBETWEEN(1,Easy),IF($A12="Medium",RANDBETWEEN(Easy+1,Easy+Medium),IF($A12="Harder",RANDBETWEEN(Easy+Medium+1,Easy+Medium+Hard),RANDBETWEEN(1,Easy+Medium+Hard)))),D12) -> 34 | F12: =IF(COUNTIF(E$1:E12,E12)<>1,IF($A12="Easier",RANDBETWEEN(1,Easy),IF($A12="Medium",RANDBETWEEN(Easy+1,Easy+Medium),IF($A12="Harder",RANDBETWEEN(Easy+Medium+1,Easy+Medium+Hard),RANDBETWEEN(1,Easy+Medium+Hard)))),E12) -> 34 | G12: 12 | H12: =VLOOKUP($F12,'System DO NOT OPEN'!$A$8:$P$200,11) -> 9 + 6 × (-10) | I12: =VLOOKUP($F12,'System DO NOT OPEN'!$A$8:$P$200,16) -> -51
A13: =Worksheet!D15 -> Medium | B13: 45 | C13: =IF(COUNTIF(B$1:B13,B13)<>1,IF($A13="Easier",RANDBETWEEN(1,Easy),IF($A13="Medium",RANDBETWEEN(Easy+1,Easy+Medium),IF($A13="Harder",RANDBETWEEN(Easy+Medium+1,Easy+Medium+Hard),RANDBETWEEN(1,Easy+Medium+Hard)))),B13) -> 44 | D13: =IF(COUNTIF(C$1:C13,C13)<>1,IF($A13="Easier",RANDBETWEEN(1,Easy),IF($A13="Medium",RANDBETWEEN(Easy+1,Easy+Medium),IF($A13="Harder",RANDBETWEEN(Easy+Medium+1,Easy+Medium+Hard),RANDBETWEEN(1,Easy+Medium+Hard)))),C13) -> 37 | E13: =IF(COUNTIF(D$1:D13,D13)<>1,IF($A13="Easier",RANDBETWEEN(1,Easy),IF($A13="Medium",RANDBETWEEN(Easy+1,Easy+Medium),IF($A13="Harder",RANDBETWEEN(Easy+Medium+1,Easy+Medium+Hard),RANDBETWEEN(1,Easy+Medium+Hard)))),D13) -> 37 | F13: =IF(COUNTIF(E$1:E13,E13)<>1,IF($A13="Easier",RANDBETWEEN(1,Easy),IF($A13="Medium",RANDBETWEEN(Easy+1,Easy+Medium),IF($A13="Harder",RANDBETWEEN(Easy+Medium+1,Easy+Medium+Hard),RANDBETWEEN(1,Easy+Medium+Hard)))),E13) -> 37 | G13: 13 | H13: =VLOOKUP($F13,'System DO NOT OPEN'!$A$8:$P$200,11) -> Divide: 180 ÷ 40 | I13: =VLOOKUP($F13,'System DO NOT OPEN'!$A$8:$P$200,16) -> 4.5
A14: =Worksheet!D16 -> Medium | B14: 39 | C14: =IF(COUNTIF(B$1:B14,B14)<>1,IF($A14="Easier",RANDBETWEEN(1,Easy),IF($A14="Medium",RANDBETWEEN(Easy+1,Easy+Medium),IF($A14="Harder",RANDBETWEEN(Easy+Medium+1,Easy+Medium+Hard),RANDBETWEEN(1,Easy+Medium+Hard)))),B14) -> 39 | D14: =IF(COUNTIF(C$1:C14,C14)<>1,IF($A14="Easier",RANDBETWEEN(1,Easy),IF($A14="Medium",RANDBETWEEN(Easy+1,Easy+Medium),IF($A14="Harder",RANDBETWEEN(Easy+Medium+1,Easy+Medium+Hard),RANDBETWEEN(1,Easy+Medium+Hard)))),C14) -> 39 | E14: =IF(COUNTIF(D$1:D14,D14)<>1,IF($A14="Easier",RANDBETWEEN(1,Easy),IF($A14="Medium",RANDBETWEEN(Easy+1,Easy+Medium),IF($A14="Harder",RANDBETWEEN(Easy+Medium+1,Easy+Medium+Hard),RANDBETWEEN(1,Easy+Medium+Hard)))),D14) -> 39 | F14: =IF(COUNTIF(E$1:E14,E14)<>1,IF($A14="Easier",RANDBETWEEN(1,Easy),IF($A14="Medium",RANDBETWEEN(Easy+1,Easy+Medium),IF($A14="Harder",RANDBETWEEN(Easy+Medium+1,Easy+Medium+Hard),RANDBETWEEN(1,Easy+Medium+Hard)))),E14) -> 39 | G14: 14 | H14: =VLOOKUP($F14,'System DO NOT OPEN'!$A$8:$P$200,11) -> Divide: -8000 ÷ 50 | I14: =VLOOKUP($F14,'System DO NOT OPEN'!$A$8:$P$200,16) -> 80
A15: =Worksheet!D17 -> Harder | B15: 57 | C15: =IF(COUNTIF(B$1:B15,B15)<>1,IF($A15="Easier",RANDBETWEEN(1,Easy),IF($A15="Medium",RANDBETWEEN(Easy+1,Easy+Medium),IF($A15="Harder",RANDBETWEEN(Easy+Medium+1,Easy+Medium+Hard),RANDBETWEEN(1,Easy+Medium+Hard)))),B15) -> 57 | D15: =IF(COUNTIF(C$1:C15,C15)<>1,IF($A15="Easier",RANDBETWEEN(1,Easy),IF($A15="Medium",RANDBETWEEN(Easy+1,Easy+Medium),IF($A15="Harder",RANDBETWEEN(Easy+Medium+1,Easy+Medium+Hard),RANDBETWEEN(1,Easy+Medium+Hard)))),C15) -> 57 | E15: =IF(COUNTIF(D$1:D15,D15)<>1,IF($A15="Easier",RANDBETWEEN(1,Easy),IF($A15="Medium",RANDBETWEEN(Easy+1,Easy+Medium),IF($A15="Harder",RANDBETWEEN(Easy+Medium+1,Easy+Medium+Hard),RANDBETWEEN(1,Easy+Medium+Hard)))),D15) -> 57 | F15: =IF(COUNTIF(E$1:E15,E15)<>1,IF($A15="Easier",RANDBETWEEN(1,Easy),IF($A15="Medium",RANDBETWEEN(Easy+1,Easy+Medium),IF($A15="Harder",RANDBETWEEN(Easy+Medium+1,Easy+Medium+Hard),RANDBETWEEN(1,Easy+Medium+Hard)))),E15) -> 57 | G15: 15 | H15: =VLOOKUP($F15,'System DO NOT OPEN'!$A$8:$P$200,11) -> 0.9 × 3300 | I15: =VLOOKUP($F15,'System DO NOT OPEN'!$A$8:$P$200,16) -> 2970
A16: =Worksheet!D18 -> Harder | B16: 57 | C16: =IF(COUNTIF(B$1:B16,B16)<>1,IF($A16="Easier",RANDBETWEEN(1,Easy),IF($A16="Medium",RANDBETWEEN(Easy+1,Easy+Medium),IF($A16="Harder",RANDBETWEEN(Easy+Medium+1,Easy+Medium+Hard),RANDBETWEEN(1,Easy+Medium+Hard)))),B16) -> 50 | D16: =IF(COUNTIF(C$1:C16,C16)<>1,IF($A16="Easier",RANDBETWEEN(1,Easy),IF($A16="Medium",RANDBETWEEN(Easy+1,Easy+Medium),IF($A16="Harder",RANDBETWEEN(Easy+Medium+1,Easy+Medium+Hard),RANDBETWEEN(1,Easy+Medium+Hard)))),C16) -> 50 | E16: =IF(COUNTIF(D$1:D16,D16)<>1,IF($A16="Easier",RANDBETWEEN(1,Easy),IF($A16="Medium",RANDBETWEEN(Easy+1,Easy+Medium),IF($A16="Harder",RANDBETWEEN(Easy+Medium+1,Easy+Medium+Hard),RANDBETWEEN(1,Easy+Medium+Hard)))),D16) -> 50 | F16: =IF(COUNTIF(E$1:E16,E16)<>1,IF($A16="Easier",RANDBETWEEN(1,Easy),IF($A16="Medium",RANDBETWEEN(Easy+1,Easy+Medium),IF($A16="Harder",RANDBETWEEN(Easy+Medium+1,Easy+Medium+Hard),RANDBETWEEN(1,Easy+Medium+Hard)))),E16) -> 50 | G16: 16 | H16: =VLOOKUP($F16,'System DO NOT OPEN'!$A$8:$P$200,11) -> Divide: 3115 ÷ 500 | I16: =VLOOKUP($F16,'System DO NOT OPEN'!$A$8:$P$200,16) -> 6.23
A17: =Worksheet!D19 -> Harder | B17: 56 | C17: =IF(COUNTIF(B$1:B17,B17)<>1,IF($A17="Easier",RANDBETWEEN(1,Easy),IF($A17="Medium",RANDBETWEEN(Easy+1,Easy+Medium),IF($A17="Harder",RANDBETWEEN(Easy+Medium+1,Easy+Medium+Hard),RANDBETWEEN(1,Easy+Medium+Hard)))),B17) -> 56 | D17: =IF(COUNTIF(C$1:C17,C17)<>1,IF($A17="Easier",RANDBETWEEN(1,Easy),IF($A17="Medium",RANDBETWEEN(Easy+1,Easy+Medium),IF($A17="Harder",RANDBETWEEN(Easy+Medium+1,Easy+Medium+Hard),RANDBETWEEN(1,Easy+Medium+Hard)))),C17) -> 56 | E17: =IF(COUNTIF(D$1:D17,D17)<>1,IF($A17="Easier",RANDBETWEEN(1,Easy),IF($A17="Medium",RANDBETWEEN(Easy+1,Easy+Medium),IF($A17="Harder",RANDBETWEEN(Easy+Medium+1,Easy+Medium+Hard),RANDBETWEEN(1,Easy+Medium+Hard)))),D17) -> 56 | F17: =IF(COUNTIF(E$1:E17,E17)<>1,IF($A17="Easier",RANDBETWEEN(1,Easy),IF($A17="Medium",RANDBETWEEN(Easy+1,Easy+Medium),IF($A17="Harder",RANDBETWEEN(Easy+Medium+1,Easy+Medium+Hard),RANDBETWEEN(1,Easy+Medium+Hard)))),E17) -> 56 | G17: 17 | H17: =VLOOKUP($F17,'System DO NOT OPEN'!$A$8:$P$200,11) -> 17 – 10 × 2² | I17: =VLOOKUP($F17,'System DO NOT OPEN'!$A$8:$P$200,16) -> -23
A18: =Worksheet!D20 -> Harder | B18: 53 | C18: =IF(COUNTIF(B$1:B18,B18)<>1,IF($A18="Easier",RANDBETWEEN(1,Easy),IF($A18="Medium",RANDBETWEEN(Easy+1,Easy+Medium),IF($A18="Harder",RANDBETWEEN(Easy+Medium+1,Easy+Medium+Hard),RANDBETWEEN(1,Easy+Medium+Hard)))),B18) -> 53 | D18: =IF(COUNTIF(C$1:C18,C18)<>1,IF($A18="Easier",RANDBETWEEN(1,Easy),IF($A18="Medium",RANDBETWEEN(Easy+1,Easy+Medium),IF($A18="Harder",RANDBETWEEN(Easy+Medium+1,Easy+Medium+Hard),RANDBETWEEN(1,Easy+Medium+Hard)))),C18) -> 53 | E18: =IF(COUNTIF(D$1:D18,D18)<>1,IF($A18="Easier",RANDBETWEEN(1,Easy),IF($A18="Medium",RANDBETWEEN(Easy+1,Easy+Medium),IF($A18="Harder",RANDBETWEEN(Easy+Medium+1,Easy+Medium+Hard),RANDBETWEEN(1,Easy+Medium+Hard)))),D18) -> 53 | F18: =IF(COUNTIF(E$1:E18,E18)<>1,IF($A18="Easier",RANDBETWEEN(1,Easy),IF($A18="Medium",RANDBETWEEN(Easy+1,Easy+Medium),IF($A18="Harder",RANDBETWEEN(Easy+Medium+1,Easy+Medium+Hard),RANDBETWEEN(1,Easy+Medium+Hard)))),E18) -> 53 | G18: 18 | H18: =VLOOKUP($F18,'System DO NOT OPEN'!$A$8:$P$200,11) -> 47 – 8 × (-4) | I18: =VLOOKUP($F18,'System DO NOT OPEN'!$A$8:$P$200,16) -> 79
A19: =Worksheet!D21 -> Harder | B19: 55 | C19: =IF(COUNTIF(B$1:B19,B19)<>1,IF($A19="Easier",RANDBETWEEN(1,Easy),IF($A19="Medium",RANDBETWEEN(Easy+1,Easy+Medium),IF($A19="Harder",RANDBETWEEN(Easy+Medium+1,Easy+Medium+Hard),RANDBETWEEN(1,Easy+Medium+Hard)))),B19) -> 55 | D19: =IF(COUNTIF(C$1:C19,C19)<>1,IF($A19="Easier",RANDBETWEEN(1,Easy),IF($A19="Medium",RANDBETWEEN(Easy+1,Easy+Medium),IF($A19="Harder",RANDBETWEEN(Easy+Medium+1,Easy+Medium+Hard),RANDBETWEEN(1,Easy+Medium+Hard)))),C19) -> 55 | E19: =IF(COUNTIF(D$1:D19,D19)<>1,IF($A19="Easier",RANDBETWEEN(1,Easy),IF($A19="Medium",RANDBETWEEN(Easy+1,Easy+Medium),IF($A19="Harder",RANDBETWEEN(Easy+Medium+1,Easy+Medium+Hard),RANDBETWEEN(1,Easy+Medium+Hard)))),D19) -> 55 | F19: =IF(COUNTIF(E$1:E19,E19)<>1,IF($A19="Easier",RANDBETWEEN(1,Easy),IF($A19="Medium",RANDBETWEEN(Easy+1,Easy+Medium),IF($A19="Harder",RANDBETWEEN(Easy+Medium+1,Easy+Medium+Hard),RANDBETWEEN(1,Easy+Medium+Hard)))),E19) -> 55 | G19: 19 | H19: =VLOOKUP($F19,'System DO NOT OPEN'!$A$8:$P$200,11) -> 1/2 × (-8) + 7 | I19: =VLOOKUP($F19,'System DO NOT OPEN'!$A$8:$P$200,16) -> 3
A20: =Worksheet!D22 -> Harder | B20: 56 | C20: =IF(COUNTIF(B$1:B20,B20)<>1,IF($A20="Easier",RANDBETWEEN(1,Easy),IF($A20="Medium",RANDBETWEEN(Easy+1,Easy+Medium),IF($A20="Harder",RANDBETWEEN(Easy+Medium+1,Easy+Medium+Hard),RANDBETWEEN(1,Easy+Medium+Hard)))),B20) -> 51 | D20: =IF(COUNTIF(C$1:C20,C20)<>1,IF($A20="Easier",RANDBETWEEN(1,Easy),IF($A20="Medium",RANDBETWEEN(Easy+1,Easy+Medium),IF($A20="Harder",RANDBETWEEN(Easy+Medium+1,Easy+Medium+Hard),RANDBETWEEN(1,Easy+Medium+Hard)))),C20) -> 51 | E20: =IF(COUNTIF(D$1:D20,D20)<>1,IF($A20="Easier",RANDBETWEEN(1,Easy),IF($A20="Medium",RANDBETWEEN(Easy+1,Easy+Medium),IF($A20="Harder",RANDBETWEEN(Easy+Medium+1,Easy+Medium+Hard),RANDBETWEEN(1,Easy+Medium+Hard)))),D20) -> 51 | F20: =IF(COUNTIF(E$1:E20,E20)<>1,IF($A20="Easier",RANDBETWEEN(1,Easy),IF($A20="Medium",RANDBETWEEN(Easy+1,Easy+Medium),IF($A20="Harder",RANDBETWEEN(Easy+Medium+1,Easy+Medium+Hard),RANDBETWEEN(1,Easy+Medium+Hard)))),E20) -> 51 | G20: 20 | H20: =VLOOKUP($F20,'System DO NOT OPEN'!$A$8:$P$200,11) -> (-3)² – (-46) | I20: =VLOOKUP($F20,'System DO NOT OPEN'!$A$8:$P$200,16) -> 55

Sheet System DO NOT OPEN
A1: Must be sorted by column B
A2: Number of easy questions | B2: =COUNTIF(ABC,"A") -> 28 | G2: A = basic
A3: Number of medium questions | B3: =COUNTIF(ABC,"B") -> 21 | G3: B = routine
A4: Number of hard questions | B4: =COUNTIF(ABC,"C") -> 9 | G4: C = A/B
A5: TOTAL | B5: =COUNT(Numbers) -> 58
B6: =B2+B3+B4=B5 -> TRUE
A7: Question number | B7: Difficulty | P7: Answer | Q7: # occurences
A8: =IF(ISBLANK(C8)," ",ROW(B8)-7) -> 1 | B8: A | C8: Take away: | D8: =RANDBETWEEN(4,9)+RANDBETWEEN(0,9)/10+RANDBETWEEN(1,9)/100 -> 7.77 | E8: – | F8: =RANDBETWEEN(1,3)+RANDBETWEEN(1,9)/10 -> 2.6 | K8: =CONCATENATE("",C8,"",D8,"",E8,"",F8,"",G8,"",H8,"",I8,"",J8,"") -> Take away: 7.77 – 2.6 | L8: =D8-F8 -> 5.17 | P8: =CONCATENATE("",L8,"",M8,"",N8,"",O8,"") -> 5.17 | Q8: 4
A9: 2 | B9: A | C9: Add: | D9: =RANDBETWEEN(2,9)+RANDBETWEEN(0,9)/10+RANDBETWEEN(1,9)/100 -> 6.17 | E9: + | F9: =RANDBETWEEN(11,29)+RANDBETWEEN(1,9)/10 -> 18.2 | K9: Add: 6.17 + 18.2 | L9: =D9+F9 -> 24.37 | P9: 24.37 | Q9: 3
A10: 3 | B10: A | C10: Multiply: | D10: =RANDBETWEEN(2,9)+RANDBETWEEN(0,9)/10+RANDBETWEEN(1,9)/100 -> 3.18 | E10: × | F10: =RANDBETWEEN(6,9) -> 9 | K10: Multiply: 3.18 × 9 | L10: =D10*F10 -> 28.62 | P10: 28.62 | Q10: 3
A11: 4 | B11: A | C11: Divide: | D11: =(RANDBETWEEN(2,9)+RANDBETWEEN(0,9)/10+RANDBETWEEN(1,9)/100)*F11 -> 36.18 | E11: ÷ | F11: =RANDBETWEEN(6,9) -> 6 | K11: Divide: 36.18 ÷ 6 | L11: =D11/F11 -> 6.03 | P11: 6.03 | Q11: 4
A12: 5 | B12: A | C12: Take away: | D12: =RANDBETWEEN(2,19) -> 19 | E12: – ( | F12: =RANDBETWEEN(-15,-1) -> -10 | G12: ) | K12: Take away: 19 – (-10) | L12: =D12-F12 -> 29 | P12: 29 | Q12: 5
A13: 6 | B13: A | C13: Multiply: | D13: =RANDBETWEEN(2,10) -> 6 | E13: × ( | F13: =RANDBETWEEN(-10,-3) -> -8 | G13: ) | K13: Multiply: 6 × (-8) | L13: =D13*F13 -> -48 | P13: -48
A14: 7 | B14: A | C14: Multiply: ( | D14: =RANDBETWEEN(-9,-3) -> -3 | E14: ) × ( | F14: =RANDBETWEEN(-10,-3) -> -6 | G14: ) | K14: Multiply: (-3) × (-6) | L14: =D14*F14 -> 18 | P14: 18 | Q14: 1
A15: 8 | B15: A | C15: Add: | D15: =RANDBETWEEN(2,20) -> 16 | E15: + ( | F15: =RANDBETWEEN(-30,-1*D15) -> -24 | G15: ) | K15: Add: 16 + (-24) | L15: =D15+F15 -> -8 | P15: -8 | Q15: 2
A16: 9 | B16: A | C16: =CHOOSE(RANDBETWEEN(1,2),"25%","75%") -> 75% | D16: of | E16: =4*RANDBETWEEN(2,9)*10^RANDBETWEEN(1,3) -> 2800 | K16: 75% of 2800 | L16: =IF(C16="25%",E16/4,E16/4*3) -> 2100 | P16: 2100 | Q16: 3
A17: 10 | B17: A | C17: =RANDBETWEEN(2,4)*10 -> 40 | D17: % of | E17: =10^RANDBETWEEN(1,3)*RANDBETWEEN(5,99) -> 5600 | K17: 40% of 5600 | L17: =E17/100*C17 -> 2240 | P17: 2240 | Q17: 3
A18: 11 | B18: A | C18: =RANDBETWEEN(6,9)*10 -> 90 | D18: % of | E18: =10^RANDBETWEEN(1,3)*RANDBETWEEN(5,99) -> 710 | K18: 90% of 710 | L18: =E18/100*C18 -> 639 | P18: 639 | Q18: 3
A19: 12 | B19: A | C19: Divide: | D19: =-1*F19*RANDBETWEEN(2,10) -> 36 | E19: ÷ ( | F19: =RANDBETWEEN(-10,-2) -> -4 | G19: ) | K19: Divide: 36 ÷ (-4) | L19: =D19*F19 -> -144 | P19: -144
A20: 13 | B20: A | C20: Divide: ( | D20: =F20*RANDBETWEEN(2,10) -> -35 | E20: ) ÷ ( | F20: =RANDBETWEEN(-10,-2) -> -7 | G20: ) | K20: Divide: (-35) ÷ (-7) | L20: =D20*F20 -> 245 | P20: 245 | Q20: 2
A21: 14 | B21: A | C21: Multiply: | D21: =RANDBETWEEN(12,15) -> 12 | E21: × | F21: =RANDBETWEEN(12,19) -> 16 | K21: Multiply: 12 × 16 | L21: =D21*F21 -> 192 | P21: 192 | Q21: 2
A22: 15 | B22: A | C22: Multiply: | D22: =RANDBETWEEN(11,19) -> 12 | E22: × | F22: =RANDBETWEEN(2,9)*10^RANDBETWEEN(2,3) -> 7000 | K22: Multiply: 12 × 7000 | L22: =D22*F22 -> 84000 | P22: 84000 | Q22: 2
A23: 16 | B23: A | C23: Take away: | D23: =RANDBETWEEN(4,9)+RANDBETWEEN(0,9)/10+RANDBETWEEN(0,9)/100+RANDBETWEEN(1,9)/1000 -> 7.084 | E23: – | F23: =RANDBETWEEN(1,3)+RANDBETWEEN(1,9)/10 -> 2.8 | K23: Take away: 7.084 – 2.8 | L23: =D23-F23 -> 4.284 | P23: 4.284 | Q23: 6
A24: 17 | B24: A | C24: Multiply: | D24: =RANDBETWEEN(1,5)+0.5 -> 2.5 | E24: × | F24: =RANDBETWEEN(2,9)*10^RANDBETWEEN(0,2) -> 8 | K24: Multiply: 2.5 × 8 | L24: =D24*F24 -> 20 | P24: 20 | Q24: 1
A25: 18 | B25: A | C25: Divide: | D25: =F25*L25 -> 320000 | E25: ÷ | F25: =RANDBETWEEN(2,5)*10^RANDBETWEEN(1,2) -> 400 | K25: Divide: 320000 ÷ 400 | L25: =RANDBETWEEN(2,9)*10^RANDBETWEEN(1,2) -> 800 | P25: 800 | Q25: 6
A26: 19 | B26: A | C26: Divide: | D26: =RANDBETWEEN(21,99)*F26 -> 140 | E26: ÷ | F26: =RANDBETWEEN(4,9) -> 4 | K26: Divide: 140 ÷ 4 | L26: =D26/F26 -> 35 | P26: 35 | Q26: 3
A27: 20 | B27: A | C27: Calculate: | D27: =RANDBETWEEN(2,F27-1) -> 5 | E27: / | F27: =RANDBETWEEN(5,9) -> 6 | G27: of | H27: =F27*RANDBETWEEN(5,90) -> 126 | K27: Calculate: 5/6 of 126 | L27: =H27/F27*D27 -> 105 | P27: 105 | Q27: 3
A28: 21 | B28: A | C28: ( | D28: =RANDBETWEEN(-10,-2) -> -8 | E28: )² | K28: (-8)² | L28: =D28^2 -> 64 | P28: 64 | Q28: 3
A29: 22 | B29: A | C29: 5 | D29: % of | E29: =2*10^RANDBETWEEN(1,3)*RANDBETWEEN(5,99) -> 14200 | K29: 5% of 14200 | L29: =E29/100*C29 -> 710 | P29: 710 | Q29: 3
A30: 23 | B30: A | C30: =RANDBETWEEN(101,999) -> 209 | D30: =RANDBETWEEN(1001,9999) -> 1653 | E30: =RANDBETWEEN(1001,9999) -> 2836 | F30: =RANDBETWEEN(101,999) -> 311 | G30: =RANDBETWEEN(1001,9999) -> 1545 | H30: =RANDBETWEEN(101,999) -> 865 | I30: =RANDBETWEEN(101,999) -> 906 | K30: =CONCATENATE("",C30," + ",D30,"+ ",E30," + ",F30," + ",G30," + ",H30," + ",I30,"",J30,"") -> 209 + 1653+ 2836 + 311 + 1545 + 865 + 906 | L30: =SUM(C30:I30) -> 8325 | P30: 8325 | Q30: 1
A31: 24 | B31: A | C31: Calculate: | D31: =RANDBETWEEN(2,F31-1) -> 3 | E31: / | F31: =RANDBETWEEN(5,9) -> 5 | G31: of £ | H31: =TEXT(F31*(RANDBETWEEN(1,5)+RANDBETWEEN(1,99)/100),"##.00") -> 13.80 | K31: =CONCATENATE("",C31,"",D31,"",E31,"",F31,"",G31,"",H31,"",I31,"",J31,"") -> Calculate: 3/5 of £13.80 | L31: £ | M31: =H31/F31*D31 -> 8.28 | P31: £8.28 | Q31: 4
A32: 25 | B32: A | C32: What is the square root of | D32: =RANDBETWEEN(3,12)^2 -> 121 | E32: ? | K32: =CONCATENATE("",C32,"",D32,"",E32,"",F32,"",G32,"",H32,"",I32,"",J32,"") -> What is the square root of 121? | L32: =SQRT(D32) -> 11 | P32: 11 | Q32: 1
A33: 26 | B33: A | C33: Add: ( | D33: =RANDBETWEEN(-50,-20) -> -48 | E33: ) + | F33: =RANDBETWEEN(10,-1*D33) -> 36 | K33: =CONCATENATE("",C33,"",D33,"",E33,"",F33,"",G33,"",H33,"",I33,"",J33,"") -> Add: (-48) + 36 | L33: =D33+F33 -> -12 | P33: -12 | Q33: 7
A34: 27 | B34: A | C34: Write down the number | D34: =RANDBETWEEN(2,20) -> 19 | E34: =CHOOSE(RANDBETWEEN(1,2),"million","billion") -> million | F34: in full | K34: =CONCATENATE("",C34,"",D34," ",E34,"",F34,"",G34,"",H34,"",I34,"",J34,"") -> Write down the number 19 million in full | L34: =D34 -> 19 | M34: ,000,000 | N34: =IF(E34="billion",",000","") ->  | P34: 19,000,000 | Q34: 2
A35: 28 | B35: A | C35: Write down the number | D35: half a | E35: =CHOOSE(RANDBETWEEN(1,2),"million","billion") -> million | F35: in full | K35: =CONCATENATE("",C35,"",D35," ",E35,"",F35,"",G35,"",H35,"",I35,"",J35,"") -> Write down the number half a million in full | L35: 5 | M35: 00,000 | N35: =IF(E35="billion",",000","") ->  | P35: 500,000 | Q35: 2
A36: 29 | B36: B | C36: ( | D36: =RANDBETWEEN(-10,-1) -> -8 | E36: ) × | F36: =RANDBETWEEN(2,9) -> 7 | G36: – | H36: =RANDBETWEEN(2,10) -> 2 | K36: =CONCATENATE("",C36,"",D36,"",E36,"",F36,"",G36,"",H36,"",I36,"",J36,"") -> (-8) × 7 –2 | L36: =D36*F36-H36 -> -58 | P36: -58 | Q36: 2
A37: 30 | B37: B | C37: ( | D37: =RANDBETWEEN(-10,-1) -> -9 | E37: ) × | F37: 0 | G37: – | H37: =RANDBETWEEN(2,10) -> 3 | K37: (-9) × 0 –3 | L37: =D37*F37-H37 -> -3 | P37: -3 | Q37: 4
A38: 31 | B38: B | C38: ( | D38: =RANDBETWEEN(-10,-1) -> -1 | E38: ) × | F38: =RANDBETWEEN(2,9) -> 2 | G38: + | H38: =RANDBETWEEN(1,5) -> 2 | K38: (-1) × 2 + 2 | L38: =D38*F38+H38 -> 0 | P38: 0 | Q38: 3
A39: 32 | B39: B | C39: ( | D39: =RANDBETWEEN(-10,-1) -> -4 | E39: ) × ( | F39: =RANDBETWEEN(-10,-2) -> -9 | G39: ) + | H39: =RANDBETWEEN(1,5) -> 1 | K39: (-4) × (-9) + 1 | L39: =D39*F39+H39 -> 37 | P39: 37 | Q39: 10
A40: =IF(ISBLANK(C40)," ",ROW(B40)-7) -> 33 | B40: B | C40: ( | D40: =RANDBETWEEN(-10,-1) -> -3 | E40: ) × | F40: 0 | G40: + | H40: =RANDBETWEEN(1,5) -> 3 | K40: (-3) × 0 + 3 | L40: =D40*F40+H40 -> 3 | P40: =CONCATENATE("",L40,"",M40,"",N40,"",O40,"") -> 3 | Q40: 7
A41: 34 | B41: B | C41: =RANDBETWEEN(1,10) -> 9 | D41: + | E41: =RANDBETWEEN(2,10) -> 6 | F41: × ( | G41: =RANDBETWEEN(-10,-1) -> -10 | H41: ) | K41: 9 + 6 × (-10) | L41: =C41+E41*G41 -> -51 | P41: -51 | Q41: 2
A42: 35 | B42: B | C42: =RANDBETWEEN(2,5) -> 3 | D42: × ( | E42: =RANDBETWEEN(-5,-2) -> -2 | F42: ) × | G42: =RANDBETWEEN(2,5) -> 3 | K42: 3 × (-2) × 3 | L42: =C42*E42*G42 -> -18 | P42: -18 | Q42: 2
A43: 36 | B43: B | C43: £ | D43: =RANDBETWEEN(1,3)+RANDBETWEEN(1,99)/100 -> 1.65 | E43: × | F43: =RANDBETWEEN(2,9)*10^RANDBETWEEN(1,3) -> 300 | K43: £1.65 × 300 | L43: £ | M43: =TEXT(D43*F43,"##.00") -> 495.00 | P43: £495.00 | Q43: 2
A44: 37 | B44: B | C44: Divide: | D44: =F44*L44 -> 180 | E44: ÷ | F44: =RANDBETWEEN(2,5)*10^RANDBETWEEN(1,2) -> 40 | K44: Divide: 180 ÷ 40 | L44: =RANDBETWEEN(2,6)+0.5 -> 4.5 | P44: 4.5 | Q44: 1
A45: 38 | B45: B | C45: Divide: | D45: =F45*L45 -> 930 | E45: ÷ | F45: =RANDBETWEEN(2,5)*10^RANDBETWEEN(1,2) -> 300 | K45: Divide: 930 ÷ 300 | L45: =RANDBETWEEN(2,6)+RANDBETWEEN(1,9)/10 -> 3.1 | P45: 3.1 | Q45: 1
A46: 39 | B46: B | C46: Divide: | D46: =F46*L46*(-1)*RANDBETWEEN(1,2) -> -8000 | E46: ÷ | F46: =RANDBETWEEN(2,5)*10^RANDBETWEEN(1,2)*RANDBETWEEN(1,2) -> 50 | K46: Divide: -8000 ÷ 50 | L46: =RANDBETWEEN(2,9)*10^RANDBETWEEN(1,2) -> 80 | P46: 80 | Q46: 2
A47: 40 | B47: B | C47: Divide: | D47: =RANDBETWEEN(1,999) -> 855 | E47: ÷ | F47: =10^RANDBETWEEN(2,3) -> 1000 | K47: Divide: 855 ÷ 1000 | L47: =D47/F47 -> 0.855 | P47: 0.855 | Q47: 1
A48: 41 | B48: B | C48: =RANDBETWEEN(12,15) -> 12 | D48: × | E48: =RANDBETWEEN(12,19) -> 14 | F48: + | G48: =RANDBETWEEN(20,199) -> 193 | K48: 12 × 14 + 193 | L48: =C48*E48+G48 -> 361 | P48: 361 | Q48: 2
A49: 42 | B49: B | C49: =RANDBETWEEN(20,199) -> 85 | D49: + | E49: =RANDBETWEEN(12,15) -> 14 | F49: × | G49: =RANDBETWEEN(12,19) -> 15 | K49: 85 + 14 × 15 | L49: =C49+E49*G49 -> 295 | P49: 295 | Q49: 2
A50: 43 | B50: B | C50: =RANDBETWEEN(20,49)*10 -> 420 | D50: – | E50: =RANDBETWEEN(1,2)*10 -> 10 | F50: × | G50: =RANDBETWEEN(6,15) -> 11 | K50: 420 – 10 × 11 | L50: =C50-E50*G50 -> 310 | P50: 310 | Q50: 2
A51: 44 | B51: B | C51: =L51*G51*E51 -> 180 | D51: ÷ | E51: =RANDBETWEEN(2,10) -> 4 | F51: ÷ | G51: =RANDBETWEEN(5,10) -> 5 | K51: 180 ÷ 4 ÷ 5 | L51: =RANDBETWEEN(3,9) -> 9 | P51: 9 | Q51: 7
A52: 45 | B52: B | C52: =4*RANDBETWEEN(1,3) -> 4 | D52: × | E52: 2.5 × | F52: =RANDBETWEEN(1,9)+RANDBETWEEN(1,9)/10 -> 6.8 | K52: 4 × 2.5 × 6.8 | L52: =C52*2.5*F52 -> 68 | P52: 68 | Q52: 3
A53: 46 | B53: B | C53: =RANDBETWEEN(4,9) -> 6 | D53: × | E53: ( | F53: =RANDBETWEEN(1,4) -> 1 | H53: =TEXT(CHOOSE(RANDBETWEEN(1,2),1/3,2/3),"#/#") -> 2/3 | I53: ) | K53: 6 × (1 2/3) | L53: =TEXT((F53+(IF(H53="1/3",0.33333333,0.66666666)))*C53,"## ##/##") -> 10 | P53: 10 | Q53: 5
A54: 47 | B54: B | C54: =RANDBETWEEN(11,99)*10 -> 280 | D54: – ( | E54: =G54*RANDBETWEEN(2,9)*10^RANDBETWEEN(0,1) -> 45 | F54: ÷ | G54: =RANDBETWEEN(2,9) -> 9 | H54: ) | K54: 280 – (45 ÷ 9) | L54: =C54-(E54/G54) -> 275 | P54: 275 | Q54: 1
A55: 48 | B55: B | C55: Multiply: | D55: =RANDBETWEEN(11,19) -> 11 | E55: × | F55: =RANDBETWEEN(4,9) -> 6 | G55: × | H55: =RANDBETWEEN(4,9) -> 4 | K55: Multiply: 11 × 6 × 4 | L55: =D55*F55*H55 -> 264 | P55: 264 | Q55: 1
A56: 49 | B56: B | C56: =RANDBETWEEN(2,9) -> 5 | D56: % of £ | E56: =RANDBETWEEN(2,99)*10^RANDBETWEEN(2,3) -> 7000 | K56: 5% of £7000 | L56: £ | M56: =E56/100*C56 -> 350 | P56: £350 | Q56: 5
A57: 50 | B57: C | C57: Divide: | D57: =F57*L57 -> 3115 | E57: ÷ | F57: =RANDBETWEEN(2,5)*10^RANDBETWEEN(1,2) -> 500 | K57: Divide: 3115 ÷ 500 | L57: =RANDBETWEEN(2,6)+RANDBETWEEN(1,99)/100 -> 6.23 | P57: 6.23 | Q57: 2
A58: 51 | B58: C | C58: ( | D58: =RANDBETWEEN(-10,-2) -> -3 | E58: )² | F58: – ( | G58: =RANDBETWEEN(-99,-20) -> -46 | H58: ) | K58: (-3)² – (-46) | L58: =D58^2-G58 -> 55 | P58: 55 | Q58: 1
A59: 52 | B59: C | C59: =RANDBETWEEN(2,5) -> 4 | D59: × ( | E59: =RANDBETWEEN(-5,-2) -> -5 | F59: ) × ( | G59: =RANDBETWEEN(-5,-1) -> -4 | H59: ) – ( | I59: =RANDBETWEEN(-30,-10) -> -21 | J59: ) | K59: 4 × (-5) × (-4) – (-21) | L59: =C59*E59*G59-I59 -> 101 | P59: 101 | Q59: 1
A60: 53 | B60: C | C60: =RANDBETWEEN(10,80) -> 47 | D60: – | E60: =RANDBETWEEN(2,10) -> 8 | F60: × ( | G60: =RANDBETWEEN(-9,-1) -> -4 | H60: ) | K60: 47 – 8 × (-4) | L60: =C60-E60*G60 -> 79 | P60: 79 | Q60: 2
A61: 54 | B61: C | C61: =RANDBETWEEN(1,4)+0.5 -> 1.5 | D61: =CONCATENATE(" × ",IF(E61<0,"(","")) -> × ( | E61: =RANDBETWEEN(1,5)*2*(-1)^RANDBETWEEN(1,2) -> -2 | F61: =CONCATENATE(IF(E61<0,")","")," + ") -> ) + | G61: =RANDBETWEEN(2,10) -> 3 | K61: 1.5 × (-2) + 3 | L61: =C61*E61+G61 -> 0 | P61: 0 | Q61: 2
A62: 55 | B62: C | C62: 1/2 | D62: =CONCATENATE(" × ",IF(E62<0,"(","")) -> × ( | E62: =RANDBETWEEN(1,5)*2*(-1)^RANDBETWEEN(1,2) -> -8 | F62: =CONCATENATE(IF(E62<0,")","")," + ") -> ) + | G62: =RANDBETWEEN(2,10) -> 7 | K62: 1/2 × (-8) + 7 | L62: =E62/2+G62 -> 3 | P62: 3 | Q62: 1
A63: 56 | B63: C | C63: =RANDBETWEEN(10,30) -> 17 | D63: – | E63: =RANDBETWEEN(3,10) -> 10 | F63: × | G63: =RANDBETWEEN(2,5) -> 2 | H63: ² | K63: 17 – 10 × 2² | L63: =C63-E63*G63^2 -> -23 | P63: -23 | Q63: 1
A64: 57 | B64: C | C64: =RANDBETWEEN(2,9)/10 -> 0.9 | D64: × | E64: =RANDBETWEEN(1,99)*10^RANDBETWEEN(1,2) -> 3300 | K64: 0.9 × 3300 | L64: =C64*E64 -> 2970 | P64: 2970 | Q64: 1
A65: 58 | B65: C | C65: =RANDBETWEEN(2,9)/100 -> 0.03 | D65: × | E65: =RANDBETWEEN(1,99)*10^RANDBETWEEN(2,3) -> 1800 | K65: 0.03 × 1800 | L65: =C65*E65 -> 54 | P65: 54 | Q65: 1
A72: =IF(ISBLANK(C72)," ",ROW(B72)-7) -> 
A104: =IF(ISBLANK(C104)," ",ROW(B104)-7) -> 
